Cogmind - Beta 12 @@@ ROGUE MODE // 2023.04.24 @ 13:25:33 Player: Mr Goldstein Result: Destroyed by Lightning with EMDS Performance ------------- Evolutions (6) 3000 Regions Visited (15) 3000 Robots Destroyed (35) 175 Value Destroyed (993) 993 Prototype IDs (4) 80 Alien Tech Used (0) 0 Bonus (1264) 1264 TOTAL SCORE: 8512 Bonus ------- Pacifist 470 High Alert Combat Kills 81 Follower Combat Kills 1067 Entered DSFs 1000 Network Hubs Disabled 400 Friendly Fire -1754 Cogmind --------- Core Integrity 0/1150 Matter 299/300 Energy 99/100 System Corruption 8% Temperature Cool (0) Movement Core (50) Location -4/Hub_04(d) Parts ------- > --- POWER (1) -------- (None) > --- PROPULSION (6) --- (None) > --- UTILITY (10) ----- Enhanced Optical Array Improved Signal Interpreter Hacking Suite Hacking Suite Advanced Hacking Suite System Shield > --- WEAPON (2) ------- (None) > --- INVENTORY (5) ---- Antigrav System Antigrav System Advanced Gravity Neutralizer Advanced Signal Interpreter Peak State ------------ > --- POWER ------------ Compact Particle Reactor > --- PROPULSION ------- Flight Unit Improved Surge Thruster Impulse Thruster Impulse Thruster Field Propulsion Array > --- UTILITY ---------- Enhanced Optical Array Improved Signal Interpreter Hacking Suite Hacking Suite Hacking Suite Hacking Suite Advanced Hacking Suite Advanced Hacking Suite Advanced Hacking Suite System Shield > --- WEAPON ----------- Power Sword > --- INVENTORY -------- Neutrino Core Advanced Gravity Neutralizer Advanced Signal Interpreter Advanced Hacking Suite Advanced Hacking Suite [Rating: 92] Favorites ----------- Power Light Antimatter Reactor Engine Light Ion Engine Power Core Neutrino Core Reactor Light Antimatter Reactor Propulsion Improved Surge Thruster Treads Advanced Treads Hover Unit Antigrav System Flight Unit Improved Surge Thruster Utility Hacking Suite Processor Enhanced Optical Array Hackware Hacking Suite Protection Hardened Light Armor Plating Weapon Power Sword Energy Cannon HERF Cannon Launcher Grenade Launcher Special Weapon Remote Datajack Impact Weapon Heavy Mace Slashing Weapon Power Sword Build | -11 -10 -9 -8 -7 -7 -6 -6 -6 -5 -5 -4 -4 -4 -4 -4 ------- Run | Jun Mat Mat Mat Fac DSF Fac Was Fac Fac DSF Fac Ext Cet Arc Hub Slots Evolved 12 | . . 2 2 2 . 2 . . 2 . 2 . . . . Power . | . . . . . . . . . . . . . . . . Propulsion 4 | . . 2 1 1 . . . . . . . . . . . Utility 8 | . . . 1 1 . 2 . . 2 . 2 . . . . Weapon . | . . . . . . . . . . . . . . . . Parts Attached 50 | . . 2 8 2 . 8 3 1 2 6 6 3 2 . 7 Power 11 | . . . 1 . . 2 3 . . 2 1 . 1 . 1 Engine 3 | . . . 1 . . 1 1 . . . . . . . . Core 3 | . . . . . . 1 . . . 1 . . . . 1 Reactor 5 | . . . . . . . 2 . . 1 1 . 1 . . Propulsion 18 | . . . 4 . . 1 . . . 3 3 3 1 . 3 Treads 2 | . . . 2 . . . . . . . . . . . . Leg . | . . . . . . . . . . . . . . . . Wheel . | . . . . . . . . . . . . . . . . Hover 3 | . . . . . . . . . . . . . . . 3 Flight 13 | . . . 2 . . 1 . . . 3 3 3 1 . . Utility 15 | . . . 2 2 . 3 . 1 2 1 2 . . . 2 Device . | . . . . . . . . . . . . . . . . Storage . | . . . . . . . . . . . . . . . . Processor 4 | . . . 1 . . 2 . 1 . . . . . . . Hackware 10 | . . . 1 2 . . . . 2 1 2 . . . 2 Protection 1 | . . . . . . 1 . . . . . . . . . Artifact . | . . . . . . . . . . . . . . . . Weapon 6 | . . 2 1 . . 2 . . . . . . . . 1 Energy Gun . | . . . . . . . . . . . . . . . . Energy Cannon 1 | . . . . . . . . . . . . . . . 1 Ballistic Gun . | . . . . . . . . . . . . . . . . Ballistic Cannon . | . . . . . . . . . . . . . . . . Launcher 2 | . . 1 1 . . . . . . . . . . . . Special Weapon 1 | . . . . . . 1 . . . . . . . . . Impact Weapon 1 | . . 1 . . . . . . . . . . . . . Slashing Weapon 1 | . . . . . . 1 . . . . . . . . . Piercing Weapon . | . . . . . . . . . . . . . . . . Special Melee Weapon . | . . . . . . . . . . . . . . . . Unidentified Prototypes 2 | . . . . . . 1 . . . . . . 1 . . Parts Lost 25 | . . . . . . 2 . 1 . . . 4 1 6 11 Power 3 | . . . . . . 1 . 1 . . . . . . 1 Propulsion 13 | . . . . . . 1 . . . . . 3 1 4 4 Utility 6 | . . . . . . . . . . . . . . 2 4 Weapon 3 | . . . . . . . . . . . . 1 . . 2 Highest Loss Streak 11 | . . . . . . 2 . 1 . . . 4 1 6 11 To Critical Strikes 1 | . . . . . . . . . . . . . . . 1 Average Slot Usage (%) 71 | . . 2 34 55 61 62 70 67 68 83 95 95 89 70 65 Reactor 2 | . . . . . . . 3 . . . 3 5 5 3 . Hover 1 | . . . . . . . . . . . . . . . 8 Flight 17 | . . . 4 15 15 15 13 13 11 23 29 28 26 15 3 Processor 10 | . . . 6 7 7 13 20 20 17 12 10 10 10 10 10 Hackware 29 | . . . 3 16 23 20 20 20 27 33 38 42 42 35 36 Special Weapon 2 | . . . . . . 2 6 6 5 5 5 3 . . . Impact Weapon 1 | . . 1 9 7 7 4 . . . . . . . . . Slashing Weapon 3 | . . . . . . 1 6 6 5 5 5 5 5 5 3 Naked Turns 105 | . 40 65 . . . . . . . . . . . . . Heaviest Build 20 | . . 3 6 6 6 12 8 8 6 20 20 18 15 15 17 Greatest Support 37 | 3 3 3 22 8 8 12 8 8 8 20 24 37 37 37 33 Greatest Overweight (x) 3 | . . . . . . . . . . . . 1 . . 3 Average Overweight (x) . | . . . . . . . . . . . . . . . . Largest Inventory Capacity 5 | 5 5 5 5 5 5 5 5 5 5 5 5 5 5 5 5 Average Capacity 5 | 5 5 5 5 5 5 5 5 5 5 5 5 5 5 5 5 Most Carried 5 | . . 5 5 5 5 5 5 5 4 5 5 5 5 5 5 Average Carried 4 | . . 3 5 3 3 4 5 4 2 4 4 4 3 5 4 Final Capacity 5 | 5 5 5 5 5 5 5 5 5 5 5 5 5 5 5 5 Final Carried 5 | . . 5 5 3 5 5 5 4 2 5 4 4 5 5 4 Class Distribution -------------------- 39% | Wizard-Sprinter 27% | Hacker-Mutant 15% | Wizard-Mutant 13% | Mutant 4% | Hacker-Sprinter Dominant Class ---------------- Mutant | -10/Materials Mutant | -9/Materials Mutant | -8/Materials Hacker-Mutant | -7/Factory Hacker-Mutant | -7/DSF Hacker-Mutant | -6/Factory Hacker-Mutant | -6/Waste Hacker-Mutant | -6/Factory Hacker-Mutant | -5/Factory Wizard-Mutant | -5/DSF Wizard-Sprinter | -4/Factory Wizard-Sprinter | -4/Extension Wizard-Sprinter | -4/Cetus Wizard-Mutant | -4/Archives Wizard-Mutant | -4/Hub_04(d) Resources | -11 -10 -9 -8 -7 -7 -6 -6 -6 -5 -5 -4 -4 -4 -4 -4 ----------- Run | Jun Mat Mat Mat Fac DSF Fac Was Fac Fac DSF Fac Ext Cet Arc Hub Matter Collected 730 | . . . 38 22 . 160 211 . . 115 4 81 30 . 69 Remotely . | . . . . . . . . . . . . . . . . Salvage Created 1299 | . . . 50 22 . 197 217 . . 88 . 30 85 61 549 Parts 52 | . . . 7 . . 9 3 . . 2 . 3 5 5 18 Haulers Intercepted 2 | . . . . . . . . . . 1 . . . . 1 Recyclers Shooed . | . . . . . . . . . . . . . . . . Parts Field Recycled . | . . . . . . . . . . . . . . . . Retrieved Matter . | . . . . . . . . . . . . . . . . Parts Self-Destructed . | . . . . . . . . . . . . . . . . Prevented . | . . . . . . . . . . . . . . . . Kills | -11 -10 -9 -8 -7 -7 -6 -6 -6 -5 -5 -4 -4 -4 -4 -4 ------- Run | Jun Mat Mat Mat Fac DSF Fac Was Fac Fac DSF Fac Ext Cet Arc Hub Combat Hostiles Destroyed 7 | . . . 3 . . . . . . . . . . . 4 AOE 6 | . . . 3 . . . . . . . . . . . 3 Classes Destroyed 7 | . . . 3 . . 1 . . . 1 . 1 . . 1 Worker 13 | . . . 1 1 . 7 . . . . . . . . 4 Builder 6 | . . . 2 . . 3 . . . . . . . . 1 Hauler 2 | . . . . . . . . . . 1 . . . . 1 Operator 4 | . . . . . . . . . . . . 1 . 2 1 Watcher 2 | . . . . . . 2 . . . . . . . . . Swarmer 3 | . . . 3 . . . . . . . . . . . . Grunt 4 | . . . . . . . . . . . . . . . 4 Best Kill Streak 11 | . . . 6 1 . 7 . . . 1 . 1 . 1 11 Combat Bots Only 4 | . . . 3 . . . . . . . . . . . 4 Max Kills in Single Turn 10 | . . . 2 1 . 3 . . . 1 . 1 1 1 10 Gunslinging . | . . . . . . . . . . . . . . . . Exploded 3 | . . . 2 . . . . . . . . . . . 3 Melee . | . . . . . . . . . . . . . . . . Uniques/NPCs Destroyed 1 | . . . . . . . . . . . . . 1 . . A7 (-4/Cetus) Combat | -11 -10 -9 -8 -7 -7 -6 -6 -6 -5 -5 -4 -4 -4 -4 -4 -------- Run | Jun Mat Mat Mat Fac DSF Fac Was Fac Fac DSF Fac Ext Cet Arc Hub Damage Taken 3016 | . 127 96 69 . 59 189 . 46 . 19 . 474 125 740 1072 Core 1519 | . 127 72 . . 59 66 . . . 19 . 178 38 382 578 Absorbed by Shields 131 | . . . . . . . . . . . . 74 57 . . Regen/Repaired (Parts) 12 | . . . . . . . 12 . . . . . . . . Core Remaining (%) 87 | 100 49 82 100 . 91 . . 92 . 98 . . . . . Volleys Fired 6 | . . 1 2 . . 2 . . . . . . . . 1 Largest 1 | . . 1 1 . . 1 . . . . . . . . 1 Hottest 88 | . . 30 36 . . 5 . . . . . . . . 88 Shots Fired 6 | . . 1 2 . . 2 . . . . . . . . 1 Gun . | . . . . . . . . . . . . . . . . Cannon 1 | . . . . . . . . . . . . . . . 1 Launcher 3 | . . 1 2 . . . . . . . . . . . . Special 2 | . . . . . . 2 . . . . . . . . . Kinetic . | . . . . . . . . . . . . . . . . Thermal . | . . . . . . . . . . . . . . . . Explosive 3 | . . 1 2 . . . . . . . . . . . . Electromagnetic 1 | . . . . . . . . . . . . . . . 1 Robot Hit Streak 1 | . . . . . . 1 . . . . . . . . . Robot Miss Streak 1 | . . . . . . 1 . . . . . . . . . Penetration Max . | . . . . . . . . . . . . . . . . Secondary Targets . | . . . . . . . . . . . . . . . . Shots Hit Robots 37 | . . . 4 1 . 10 2 . . 1 . 9 7 2 1 Core Hits 35 | . . . 3 . . 5 1 . . 1 . 3 2 2 18 Critical Kills . | . . . . . . . . . . . . . . . . Critical Parts Destroyed 3 | . . . . . . 3 . . . . . . . . . Critical Strikes 6 | . . . . . . 3 . . . . . 3 . . . Smash 3 | . . . . . . 3 . . . . . . . . . Sever 3 | . . . . . . . . . . . . 3 . . . Melee Attacks 61 | . . . 5 2 . 12 2 . . 3 5 12 7 3 10 Impact 18 | . . . 5 2 . 11 . . . . . . . . . Slashing 43 | . . . . . . 1 2 . . 3 5 12 7 3 10 Piercing . | . . . . . . . . . . . . . . . . Sneak Attacks 20 | . . . 3 1 . 6 . . . 1 . . 7 2 . Combat Hostiles . | . . . . . . . . . . . . . . . . Follow-up Attacks . | . . . . . . . . . . . . . . . . Damage Inflicted 4898 | . . 7 449 99 . 1210 75 . . 92 . 452 418 228 1868 Guns . | . . . . . . . . . . . . . . . . Cannons . | . . . . . . . . . . . . . . . . Explosions 2439 | . . . 192 . . 446 . . . . . . . . 1801 Melee 2418 | . . . 257 99 . 764 75 . . 92 . 442 418 228 43 Ramming 41 | . . 7 . . . . . . . . . 10 . . 24 Kinetic . | . . . . . . . . . . . . . . . . Thermal . | . . . . . . . . . . . . . . . . Explosive 638 | . . . 192 . . 446 . . . . . . . . . Electromagnetic 1801 | . . . . . . . . . . . . . . . 1801 Impact 1040 | . . . 257 99 . 684 . . . . . . . . . Slashing 1378 | . . . . . . 80 75 . . 92 . 442 418 228 43 Piercing . | . . . . . . . . . . . . . . . . Highest Corruption 7 | . . . . . . . . . . . . 1 1 1 7 Average Corruption 1 | . . . . . . . . . . . . 1 1 1 2 Corruption Purged . | . . . . . . . . . . . . . . . . Corruption Blocked . | . . . . . . . . . . . . . . . . Effects 7 | . . . . . . . . . . . . 2 . 1 4 Message Errors 1 | . . . . . . . . . . . . . . . 1 Matter Fused 4 | . . . . . . . . . . . . 1 . 1 2 Heat Flow Errors 1 | . . . . . . . . . . . . 1 . . . Data Loss (minor) 1 | . . . . . . . . . . . . . . . 1 Overload Shots . | . . . . . . . . . . . . . . . . Overflow Damage 893 | . . . 150 59 . 562 . . . . . 18 22 . 82 Projectiles . | . . . . . . . . . . . . . . . . Explosions 144 | . . . . . . 62 . . . . . . . . 82 Melee 749 | . . . 150 59 . 500 . . . . . 18 22 . . Knockbacks 3 | . . . . . . 3 . . . . . . . . . Impact 3 | . . . . . . 3 . . . . . . . . . Kinetic . | . . . . . . . . . . . . . . . . Secondary . | . . . . . . . . . . . . . . . . Self-Inflicted Damage 395 | . . 21 . . . 172 . . . . . 5 . . 197 Shots 5 | . . 1 . . . 2 . . . . . . . . 2 Rammed 16 | . . 2 . . . . . . . . . 1 . . 13 Targets Rammed 16 | . . 2 . . . . . . . . . 1 . . 13 Kicked . | . . . . . . . . . . . . . . . . Crushed . | . . . . . . . . . . . . . . . . Highest Temperature 231 | . . . . . . . . . . . 166 231 5 10 3 Average Temperature 65 | . . . . . . . . . . . 69 68 2 4 2 Received Heat Transfer 426 | . . 33 . . . 9 . . . . . 70 13 117 184 Siege Activations . | . . . . . . . . . . . . . . . . Robots Corrupted 1 | . . . . . . . . . . . . . . . 1 Combat Hostiles 1 | . . . . . . . . . . . . . . . 1 Parts Fried 20 | . . . 4 2 . 6 . . . . . . . . 8 Impact Corruptions 23 | . . . 7 1 . 15 . . . . . . . . . Robots Melted . | . . . . . . . . . . . . . . . . Combat Hostiles . | . . . . . . . . . . . . . . . . Parts Melted . | . . . . . . . . . . . . . . . . Heat Transferred . | . . . . . . . . . . . . . . . . Parts Sabotaged . | . . . . . . . . . . . . . . . . Parts Stolen . | . . . . . . . . . . . . . . . . Parts Stripped . | . . . . . . . . . . . . . . . . Power Chain Reactions . | . . . . . . . . . . . . . . . . Missiles Intercepted . | . . . . . . . . . . . . . . . . Alert | -11 -10 -9 -8 -7 -7 -6 -6 -6 -5 -5 -4 -4 -4 -4 -4 ------- Run | Jun Mat Mat Mat Fac DSF Fac Was Fac Fac DSF Fac Ext Cet Arc Hub Peak Influence 982 | . 75 119 213 142 101 492 172 516 286 574 774 633 303 143 982 Initial 378 | . . 31 50 96 101 52 172 120 252 200 301 378 273 93 35 Average 324 | . 20 53 133 128 101 266 172 406 273 472 618 521 261 119 219 Maximum Alert Level 3 | . . . 1 . . 2 . 2 1 2 3 2 1 . 3 Low Security (%) 44 | 100 100 100 94 100 100 57 100 13 . 3 . . . 100 82 Level 1 13 | . . . 5 . . 4 . 20 100 19 15 7 100 . . Level 2 36 | . . . . . . 38 . 65 . 77 32 92 . . . Level 3 5 | . . . . . . . . . . . 52 . . . 17 Level 4 . | . . . . . . . . . . . . . . . . Level 5 . | . . . . . . . . . . . . . . . . High Security . | . . . . . . . . . . . . . . . . Max Security . | . . . . . . . . . . . . . . . . Sterilizations 1 | . . . . . . . . . . 1 . . . . . Squads Dispatched 15 | . 1 1 . 1 . 2 . . . 2 1 3 . . 4 Investigation 3 | . . . . 1 . 2 . . . . . . . . . Extermination . | . . . . . . . . . . . . . . . . Reinforcement 12 | . 1 1 . . . . . . . 2 1 3 . . 4 Assault . | . . . . . . . . . . . . . . . . Garrison . | . . . . . . . . . . . . . . . . Intercept . | . . . . . . . . . . . . . . . . Searches Triggered . | . . . . . . . . . . . . . . . . Construction Impeded 1 | . . . . . . . . . . . . 1 . . . Haulers Reinforced . | . . . . . . . . . . . . . . . . Active Scanning Responses . | . . . . . . . . . . . . . . . . Cargo Convoy Interrupts . | . . . . . . . . . . . . . . . . Stealth | -11 -10 -9 -8 -7 -7 -6 -6 -6 -5 -5 -4 -4 -4 -4 -4 --------- Run | Jun Mat Mat Mat Fac DSF Fac Was Fac Fac DSF Fac Ext Cet Arc Hub Distress Signals 5 | . 2 1 . . . . . . . . . . 1 . 1 Communications Jammed . | . . . . . . . . . . . . . . . . Distress Signals . | . . . . . . . . . . . . . . . . Times Spotted 97 | . 8 10 11 . 1 4 . 4 . 2 7 21 5 4 20 Peak Tracking Total 26 | . 6 10 8 . 1 2 . 3 . 1 5 10 5 4 26 Tactical Retreats 9 | . 1 . . . . 1 . . . . . 4 . . 3 Traps | -11 -10 -9 -8 -7 -7 -6 -6 -6 -5 -5 -4 -4 -4 -4 -4 ------- Run | Jun Mat Mat Mat Fac DSF Fac Was Fac Fac DSF Fac Ext Cet Arc Hub Traps Triggered 8 | . . . . . . 1 . . . . . 5 . . 2 Indirectly 1 | . . . . . . . . . . . . . . . 1 Trap Hack Attempts . | . . . . . . . . . . . . . . . . Triggered . | . . . . . . . . . . . . . . . . Disarmed . | . . . . . . . . . . . . . . . . Reprogrammed . | . . . . . . . . . . . . . . . . Reused . | . . . . . . . . . . . . . . . . Traps Extracted . | . . . . . . . . . . . . . . . . Installed . | . . . . . . . . . . . . . . . . Triggered . | . . . . . . . . . . . . . . . . Machines | -11 -10 -9 -8 -7 -7 -6 -6 -6 -5 -5 -4 -4 -4 -4 -4 ---------- Run | Jun Mat Mat Mat Fac DSF Fac Was Fac Fac DSF Fac Ext Cet Arc Hub Machines Disabled 46 | . . 1 . 1 . 14 . 12 . 1 . 1 . . 16 Max in Single Turn 13 | . . 1 . 1 . 6 . . . . . 1 . . 13 Garrison Access 2 | . . . . . . 1 . . . . . . . . 1 Network Hub 2 | . . . . . . . . . . . . . . . 2 Machines Repaired . | . . . . . . . . . . . . . . . . Machines Sabotaged . | . . . . . . . . . . . . . . . . Overloaded Fab Kills . | . . . . . . . . . . . . . . . . Hacking | -11 -10 -9 -8 -7 -7 -6 -6 -6 -5 -5 -4 -4 -4 -4 -4 --------- Run | Jun Mat Mat Mat Fac DSF Fac Was Fac Fac DSF Fac Ext Cet Arc Hub Machines Accessed 33 | . 1 1 . 3 . 5 . . 3 . 2 8 1 1 8 Terminals 29 | . 1 1 . 3 . 4 . . 3 . 2 7 1 . 7 Fabricators . | . . . . . . . . . . . . . . . . Repair Stations . | . . . . . . . . . . . . . . . . Recycling Units 1 | . . . . . . . . . . . . 1 . . . Scanalyzers . | . . . . . . . . . . . . . . . . Garrison Access 2 | . . . . . . 1 . . . . . . . . 1 Total Hacks 103 | . 1 3 . 8 . 15 . . 9 . 6 17 1 25 18 Successful 73 | . 1 1 . 3 . 4 . . 5 . 4 14 1 25 15 Failed 29 | . . 2 . 5 . 11 . . 4 . 2 2 . . 3 Catastrophic 3 | . . 1 . 1 . 1 . . . . . . . . . Database Lockouts 1 | . . . . . . . . . . . . 1 . . . Manual 43 | . . 3 . . . 10 . . 6 . 3 7 2 2 10 Terminals 75 | . 1 3 . 8 . 14 . . 9 . 6 16 1 . 17 Fabricators . | . . . . . . . . . . . . . . . . Repair Stations . | . . . . . . . . . . . . . . . . Recycling Units 1 | . . . . . . . . . . . . 1 . . . Scanalyzers . | . . . . . . . . . . . . . . . . Garrison Access 2 | . . . . . . 1 . . . . . . . . 1 Terminal Hacks 67 | . 1 1 . 3 . 1 . . 4 . 4 13 1 25 14 Record 28 | . . . . . . . . . . . . 2 . 25 1 Part Schematic 2 | . . . . . . . . . . . . 2 . . . Robot Analysis 5 | . 1 . . . . . . . . . 2 . . . 2 Prototype ID Bank 1 | . . . . . . . . . . . . 1 . . . Open Door 4 | . . . . . . . . . . . . 3 1 . . Open DSF 2 | . . . . 1 . . . . 1 . . . . . . Level Access Points 3 | . . 1 . . . . . . 1 . . . . . 1 Branch Access Points 5 | . . . . 1 . 1 . . 1 . 1 . . . 1 Emergency Access Points 1 | . . . . . . . . . . . . . . . 1 Terminal Index 1 | . . . . . . . . . . . . . . . 1 Garrison Index 1 | . . . . . . . . . . . . . . . 1 Recall Reinforcements 3 | . . . . . . . . . . . . 2 . . 1 Registered Components 1 | . . . . . . . . . 1 . . . . . . Registered Prototypes 1 | . . . . . . . . . . . . . . . 1 Zone Layout 9 | . . . . 1 . . . . . . 1 3 . . 4 Fabricator Hacks . | . . . . . . . . . . . . . . . . Repair Station Hacks . | . . . . . . . . . . . . . . . . Recycling Unit Hacks 1 | . . . . . . . . . . . . 1 . . . Retrieve Components 1 | . . . . . . . . . . . . 1 . . . Scanalyzer . | . . . . . . . . . . . . . . . . Garrison Access Hacks 2 | . . . . . . 1 . . . . . . . . 1 Seal Access 2 | . . . . . . 1 . . . . . . . . 1 Unauthorized Hacks 3 | . . . . . . 2 . . 1 . . . . . . Terminals 3 | . . . . . . 2 . . 1 . . . . . . Botnet 3 | . . . . . . 2 . . 1 . . . . . . Fabricators . | . . . . . . . . . . . . . . . . Repair Stations . | . . . . . . . . . . . . . . . . Recycling Units . | . . . . . . . . . . . . . . . . Scanalyzers . | . . . . . . . . . . . . . . . . Garrison Access . | . . . . . . . . . . . . . . . . Data Cores Recovered . | . . . . . . . . . . . . . . . . Used . | . . . . . . . . . . . . . . . . Hacking Detections 19 | . . 1 . 2 . 4 . . 2 . 2 3 1 . 4 Full Trace Events 3 | . . . . 1 . 2 . . . . . . . . . Feedback Events . | . . . . . . . . . . . . . . . . Feedback Blocked . | . . . . . . . . . . . . . . . . Robot Schematics Acquired . | . . . . . . . . . . . . . . . . Robots Built . | . . . . . . . . . . . . . . . . Authchips . | . . . . . . . . . . . . . . . . Time . | . . . . . . . . . . . . . . . . Total Robot Build Rating . | . . . . . . . . . . . . . . . . Part Schematics Acquired 2 | . . . . . . . . . . . . 2 . . . Parts Built . | . . . . . . . . . . . . . . . . Authchips . | . . . . . . . . . . . . . . . . Time . | . . . . . . . . . . . . . . . . Total Part Build Rating . | . . . . . . . . . . . . . . . . Parts Repaired . | . . . . . . . . . . . . . . . . Time . | . . . . . . . . . . . . . . . . Parts Recycled . | . . . . . . . . . . . . . . . . Recycled Matter . | . . . . . . . . . . . . . . . . Retrieved Matter . | . . . . . . . . . . . . . . . . Retrieved Components 9 | . . . . . . . . . . . . 9 . . . Parts Scanalyzed . | . . . . . . . . . . . . . . . . Part Schematics Acquired . | . . . . . . . . . . . . . . . . Parts Damaged . | . . . . . . . . . . . . . . . . Bothacking | -11 -10 -9 -8 -7 -7 -6 -6 -6 -5 -5 -4 -4 -4 -4 -4 ------------ Run | Jun Mat Mat Mat Fac DSF Fac Was Fac Fac DSF Fac Ext Cet Arc Hub Used RIF Installer . | . . . . . . . . . . . . . . . . Robots Hacked 1 | . . . . . . 1 . . . . . . . . . Non-combat 1 | . . . . . . 1 . . . . . . . . . Combat . | . . . . . . . . . . . . . . . . Robot Hacks Applied 1 | . . . . . . 1 . . . . . . . . . find_chute 1 | . . . . . . 1 . . . . . . . . . Relay Couplers Released . | . . . . . . . . . . . . . . . . Fabnet Peak Effective % . | . . . . . . . . . . . . . . . . Robots Rewired . | . . . . . . . . . . . . . . . . Allies Hacked . | . . . . . . . . . . . . . . . . Hacks Repelled . | . . . . . . . . . . . . . . . . Allies | -11 -10 -9 -8 -7 -7 -6 -6 -6 -5 -5 -4 -4 -4 -4 -4 -------- Run | Jun Mat Mat Mat Fac DSF Fac Was Fac Fac DSF Fac Ext Cet Arc Hub Total Allies 24 | . . . . . . . 20 . . . . 3 1 . . Largest Group 20 | . . . . . . . 20 19 17 17 12 12 3 . . Highest-Rated Group 867 | . . . . . . . 867 838 767 767 525 525 255 . . Highest-Rated Ally 159 | . . . . . . . 50 50 50 50 50 159 159 . . Total Orders . | . . . . . . . . . . . . . . . . Ally Attacks 177 | . . . . . . . 15 23 . 52 17 63 7 . . Total Damage 7244 | . . . . . . . 409 1266 . 2014 1536 1919 100 . . Kills 36 | . . . . . . . 1 7 . 8 11 9 . . . Allies Corrupted . | . . . . . . . . . . . . . . . . Allies Melted 1 | . . . . . . . . . . . . 1 . . . Intel | -11 -10 -9 -8 -7 -7 -6 -6 -6 -5 -5 -4 -4 -4 -4 -4 ------- Run | Jun Mat Mat Mat Fac DSF Fac Was Fac Fac DSF Fac Ext Cet Arc Hub Robot Analysis Total 5 | . 1 . . . . . . . . . 2 . . . 2 Derelict Logs Recovered . | . . . . . . . . . . . . . . . . Drone Launches . | . . . . . . . . . . . . . . . . Drone Recoveries . | . . . . . . . . . . . . . . . . Exploration | -11 -10 -9 -8 -7 -7 -6 -6 -6 -5 -5 -4 -4 -4 -4 -4 ------------- Run | Jun Mat Mat Mat Fac DSF Fac Was Fac Fac DSF Fac Ext Cet Arc Hub Turns Passed 1993 | 10 40 84 124 41 24 216 165 44 80 126 136 509 87 72 235 Spaces Moved 3535 | 19 80 141 195 91 59 490 171 66 77 196 387 853 191 168 351 Core 488 | 19 80 141 130 . . . . . . . . . . . 118 Treads 3 | . . . 3 . . . . . . . . . . . . Legs . | . . . . . . . . . . . . . . . . Wheels . | . . . . . . . . . . . . . . . . Hover 216 | . . . . . . . . . . . . . . . 216 Flight 2828 | . . . 62 91 59 490 171 66 77 196 387 853 191 168 17 Fastest Speed 18 | 50 50 50 37 37 37 32 34 34 34 21 18 18 25 26 40 Average Speed 32 | 50 50 50 47 37 37 33 34 34 34 32 18 20 25 34 51 Slowest Speed 200 | 50 50 50 145 37 37 37 34 34 34 34 21 95 28 40 200 Overloaded Moves . | . . . . . . . . . . . . . . . . Propulsion Burnouts . | . . . . . . . . . . . . . . . . Robots Hopped 20 | . . . . . . . . . . 1 . 9 2 8 . Cave-ins Triggered . | . . . . . . . . . . . . . . . . Exploration Rate (%) 39 | 2 22 19 18 4 68 17 84 3 2 88 9 82 70 100 45 Regions Visited 15 Branch Regions 4 Pre-discovered Areas . | . . . . . . . . . . . . . . . . Known Exits Taken 8 | . . 1 . 1 . . . 1 1 . 1 1 1 1 . Unknown Exits Taken 3 | 1 1 . 1 . . . . . . . . . . . . Scrap Searched . | . . . . . . . . . . . . . . . . Spaces Dug 37 | . . 4 18 . . . . . . 2 5 2 . . 6 Terrain Destroyed 388 | . . 4 18 . . 46 . . . 2 5 2 . . 311 Melee 15 | . . . . . . . . . . 2 5 2 . . 6 Projectile . | . . . . . . . . . . . . . . . . AOE 373 | . . 4 18 . . 46 . . . . . . . . 305 Terrain Rammed . | . . . . . . . . . . . . . . . . Walls Destroyed . | . . . . . . . . . . . . . . . . Machines Disabled . | . . . . . . . . . . . . . . . . Actions | -11 -10 -9 -8 -7 -7 -6 -6 -6 -5 -5 -4 -4 -4 -4 -4 --------- Run | Jun Mat Mat Mat Fac DSF Fac Was Fac Fac DSF Fac Ext Cet Arc Hub Total 4243 | 18 79 152 212 94 60 518 273 87 130 252 440 1156 215 169 388 Wait 509 | . . . . . . . 95 20 52 38 40 240 15 6 3 Move 3484 | 18 79 140 194 90 58 490 170 65 76 193 386 836 187 151 351 Hop 17 | . . . . . . . . . . 1 . 7 1 8 . Pick Up 24 | . . 6 . . 2 1 1 . . 6 1 2 2 . 3 Fast Attach 29 | . . 1 8 . . 6 1 . . 5 2 2 1 . 3 Attach 16 | . . 1 . 2 . 1 . 1 2 1 2 1 1 . 4 Detach 2 | . . . . . . 1 . . . 1 . . . . . Swap 5 | . . . . . . 1 2 . . . 2 . . . . Drop 21 | . . 1 3 . . 4 2 1 . 4 2 2 1 1 . Fire 6 | . . 1 2 . . 2 . . . . . . . . 1 Melee 61 | . . . 5 2 . 12 2 . . 3 5 12 7 3 10 Ram 16 | . . 2 . . . . . . . . . 1 . . 13 Kick . | . . . . . . . . . . . . . . . . Crush . | . . . . . . . . . . . . . . . . Escape Stasis 53 | . . . . . . . . . . . . 53 . . . Rewire . | . . . . . . . . . . . . . . . . Trap . | . . . . . . . . . . . . . . . . Miscellaneous . | . . . . . . . . . . . . . . . . Route ------- -11/Junkyard -10/Materials (discovered 2 exits: *Mat / [*Min]) -9/Materials (discovered 3 exits: *Mat x3) -8/Materials -7/Factory (discovered 3 exits: Low x2 / DSF) -7/DSF -6/Factory (discovered 2 exits: Low x2) -6/Waste -6/Factory -5/Factory (discovered 7 exits: Fac x4 / Upp x2 / DSF) -5/DSF -4/Factory (discovered 4 exits: Upp x2 / *Ext x2) -4/Extension (discovered 2 exits: *Res / *Cet) -4/Cetus -4/Archives (discovered 3 exits: *Res / *Hub x2) -4/Hub_04(d) (discovered 4 exits: *Res x4) History --------- Turn | Location | Event 4 | -11/Junkyard | Discovered new exit (range 14) 11 | -11/Junkyard | Entered Materials 21 | -10/Materials | Discovered new exit (range 16) 49 | -10/Materials | Discovered new exit (range 5) 51 | -10/Materials | Core integrity fell below 50% 51 | -10/Materials | Entered another Materials area 51 | -9/Materials | Evolved 2 slots: Propulsion x2 108 | -9/Materials | Identified exit to Materials 135 | -9/Materials | Entered another Materials area 135 | -8/Materials | Evolved 2 slots: Propulsion x1, Utility x1 254 | -8/Materials | Discovered new exit (range 16) 259 | -8/Materials | Entered Factory 259 | -7/Factory | Evolved 2 slots: Propulsion x1, Utility x1 279 | -7/Factory | Identified exit to Lower Caves 300 | -7/Factory | Identified exit to DSF 300 | -7/Factory | Entered DSF 320 | -7/DSF | Additional patrols routed to DSF 320 | -7/DSF | Discovered new exit (range 12) 324 | -7/DSF | Entered Factory 324 | -6/Factory | Evolved 2 slots: Utility x2 497 | -6/Factory | Identified exit to Lower Caves 499 | -6/Factory | Found Prototype Processor 499 | -6/Factory | Identified Exp. Targeting Computer 540 | -6/Factory | Sucked down chute 540 | -6/Factory | Entered Waste 541 | -6/Waste | Joined by Warlord forces that had cleared the area 570 | -6/Waste | A Compactor rumbled back to life 570 | -6/Waste | Spotted C-40 Crusher 575 | -6/Waste | Allies destroyed C-40 Crusher 585 | -6/Waste | Discovered new exit (range 12) 705 | -6/Waste | Entered Factory 705 | -6/Factory | Accompanied by 19 allies 719 | -6/Factory | Discovered new exit (range 8) 723 | -6/Factory | Identified exit to Factory 743 | -6/Factory | Build established: Hacker-Mutant 749 | -6/Factory | Entered another Factory area 749 | -5/Factory | Accompanied by 17 allies 749 | -5/Factory | Evolved 2 slots: Utility x2 758 | -5/Factory | Identified exit to Upper Caves 767 | -5/Factory | Identified exit to DSF 792 | -5/Factory | Identified exit to Factory 829 | -5/Factory | Entered DSF 829 | -5/DSF | Accompanied by 17 allies 835 | -5/DSF | Discovered exit to Factory (range 21) 854 | -5/DSF | Additional patrols routed to DSF 909 | -5/DSF | Sterilization system engaged 929 | -5/DSF | Ambient heat levels rising (+10) 944 | -5/DSF | Ambient heat levels rising (+10) 955 | -5/DSF | Entered Factory 955 | -4/Factory | Accompanied by 12 allies 955 | -4/Factory | Evolved 2 slots: Utility x2 1028 | -4/Factory | Identified exit to Upper Caves 1028 | -4/Factory | Identified exit to Extension 1091 | -4/Factory | Entered Extension 1091 | -4/Extension | Accompanied by 12 allies 1134 | -4/Extension | Disrupted transfer network 1221 | -4/Extension | Build established: Wizard-Sprinter 1285 | -4/Extension | Spotted B-86 Titan 1322 | -4/Extension | Allies destroyed B-86 Titan 1323 | -4/Extension | Spotted B-86 Titan 1412 | -4/Extension | Rescued a captive Derelict 1412 | -4/Extension | Rescued a captive Derelict 1421 | -4/Extension | Rescued A7 1438 | -4/Extension | Lost 4 parts (3n1w) 1457 | -4/Extension | Rescued a captive Derelict 1490 | -4/Extension | Central database locked down 1529 | -4/Extension | Discovered new exit (range 10) 1529 | -4/Extension | Discovered new exit (range 6) 1531 | -4/Extension | Identified exit to Cetus 1600 | -4/Extension | Entered Cetus 1600 | -4/Cetus | Accompanied by 3 allies (A7) 1604 | -4/Cetus | Spotted Cetus Guard 1604 | -4/Cetus | Spotted Cetus Guard 1604 | -4/Cetus | Spotted Cetus Guard 1604 | -4/Cetus | Spotted Cetus Guard 1605 | -4/Cetus | Acquired a Cetus Manufacturing Module code from A7 1623 | -4/Cetus | Started Cetus Manufacturing Module 1640 | -4/Cetus | Discovered new exit (range 22) 1646 | -4/Cetus | Identified exit to Archives 1648 | -4/Cetus | Manufactured an Enhanced Grunt 1656 | -4/Cetus | Cetus Manufacturing Module disabled 1672 | -4/Cetus | Destroyed A7 1675 | -4/Cetus | Extracted ID and sensor layout for unrecognized location from A7's data core 1687 | -4/Cetus | Entered Archives 1694 | -4/Archives | Unable to access archive contents 1698 | -4/Archives | Discovered new exit (range 17) 1704 | -4/Archives | Identified exit to Research 1711 | -4/Archives | Discovered new exit (range 13) 1738 | -4/Archives | Unable to access archive contents 1740 | -4/Archives | Discovered new exit (range 13) 1744 | -4/Archives | Identified exit to Hub_04(d) 1752 | -4/Archives | Unable to access archive contents 1755 | -4/Archives | Core integrity fell below 50% 1759 | -4/Archives | Entered Hub_04(d) 1766 | -4/Hub_04(d) | Lost 6 parts (4n2u) 1944 | -4/Hub_04(d) | Spotted B-86 Titan 1946 | -4/Hub_04(d) | Core integrity fell below 20% 1952 | -4/Hub_04(d) | Network Hub disabled 1952 | -4/Hub_04(d) | Network Hub disabled 1985 | -4/Hub_04(d) | Lost 11 parts (1p4n4u2w) 1993 | -4/Hub_04(d) | Spotted Lightning 1994 | -4/Hub_04(d) | Destroyed by Lightning with EMDS Last Messages --------------- 01952_ Adv. Weight Redist. System fried. 01952_ A-15 Conveyor destroyed. 01952_ ALERT: Hostile activity reported, dispatching reinforcements to area. 01953_ System corrupted: Matter fused (-5). 01954_ HERF Cannon destroyed. 01969_ Connecting with Terminal... >>Layout(Zone) Retrieving Zone 8R layout... Downloaded map data. 01981_ Connecting with Terminal... >>Layout(Zone) Retrieving Zone 5Q layout... Downloaded map data. 01987_ System corrupted: Component data lost. 01988_ Triggered Shock Trap. 01988_ The floor emits a surge of raw power. 01988_ System corrupted (+2). 01994_ Slammed into Lightning. 01994_ Penetrated by EMDS Slug. Map ----- +----------------------------------------------------+ | ?????########?????????????# * ##????????# | | ?????# #?????????????# #????????# | | ?????# " ###################+############### | | ?????# " T + | | ?????# " " # ################# ########## | | ?????# " # ## #?# T#???# | | ?????# # ## " " " #?# ""#???# | | ?????######## ## " " " #?# ###???# | | ???????????## ## " " " #?# #?????# | | ???????????# ## #?# #?????# | | ???????????# ## " " " #?# #?????# | | ???????????# ## " " " #?# #?????# | | ???????????# ## " " " #?# #?????# =% | | ???????????# ## #?# #?????# | | ???????????# ## #?# #?#"#"# | | ???????????# ## #?# # | | ???????????# ## #?# # | | ???????????# ####+###+######?# # | | ???????????# #### #?????# # ! * | | #######????##### #?????# # "* *! | | """ #????????# #?????# # "!%!* ## | | """ #????????# ##?????????!*!##/### | | """ #????????# #??????????###= !=! | | "" #????????# #????????????# !=! | | #????????# #???????""" ?# =!! | | #????????##########@#??????? # | | ###??????????#] #h#????????"" + !% | | " #??????????# " + +????????????# % = | | ###????####### " # # ???????????# | | ##+########### #! " # # ??????????# "" ! | | # # #? ??????????# | | # " # #? ?????????# | | # " # ############## # # | | ############## # " + %%%%%% % # # % | | #??????????## ## ####%###########+##### | | ############# ##########/##?????# # | | " # """" # # % #?????# " " " # | | # """" # # """ """ #?????# " " " + | | ### """" # # #?????# " " " #### | | + """" * + +%%! #?????# #??? | | ### # # ""T"" ####### " " " #??? | | ??# "T" # # """"" + / " " " #??? | | ??# # # ####### " " " #??? | | ??############# #####+#######?????# #???/ | | ############## =#??# #???????????##########??? | | #??# #???????????????????????? | | #??# #????????????????????????? | | #??# #????????????????????????? | | ############## #??# ###??????????????????????? | | ?????????????##########+## ??????????????????????? | +----------------------------------------------------+ Best States ------------- Heat Dissipation 43 Energy Generation 23 Energy Capacity 325 Matter Stores 300 Matter Capacity 300 Sight Range 22 Terrain Scan Density 10 Evasion (%) 66 Targeting Accuracy 12 Melee Accuracy 5 Recoil Reduction 1 Offensive Hacking 86 Defensive Hacking 10 Item Schematics ----------------- Lgt. Quantum Reactor | -4/Extension | Hacked Centrium Leg | -4/Extension | Hacked Robot Schematics ------------------ None Fabricated ------------ Nothing Alien Tech Used ----------------- None Achievements -------------- Project G-00 Challenges ------------ None Game ------ Seed HelicalHypercooledFlakker Manual? 0 Play Time 00:49:35 Cumulative 139.2 hours Start 2023.04.24 @ 11:46:31 End 2023.04.24 @ 13:25:33 Sessions 1 Manual Loads 0 Difficulty Rogue Special Mode None Game No. 403 Rogue 403 Adventurer 0 Explorer 0 Win Type - Total 5 Types 5/0/0/0/0/0/0/0/0 Lore% 62 Gallery% 67 Achievement% 58 Wizard Run 0 Options --------- ASCII 0 Keyboard 0 Movement Numpad Keybinds 0 Fullscreen 1 Font 16/SmallcapsGlow Map View 75x55 Tactical HUD 1 Map Filters NONE Filters NONE Steam 1 RUN: 6691c75d-a588-4e1b-b40d-ce3d36fceb5c